bitfinex/quotes_ETHUSD_20251010
["timestamp","ask_amount","ask_price","bid_price","bid_amount"]
[1760061606764,21.82584801,4378.0,4377.9,0.001]
[1760061607164,9.93984801,4378.0,4377.9,0.001]
[1760061607365,21.82484801,4378.0,4377.9,0.001]
[1760061607684,3.97046896,4378.0,4377.9,0.001]
[1760061607994,3.99330121,4378.0,4377.9,0.001]
[1760061608203,22.33730121,4378.0,4377.9,0.001]
[1760061608364,22.31446896,4378.0,4377.9,0.001]
[1760061608702,22.31446896,4378.0,4376.1,0.005]
[1760061608703,0.6336,4377.9,4376.1,0.005]
[1760061608863,5.07101328,4377.3,4376.1,0.005]
[1760061609059,12.63105814,4377.3,4376.1,0.005]
[1760061609404,13.07851692,4377.3,4376.1,0.005]
[1760061609570,13.17004664,4377.3,4376.1,0.005]
[1760061610593,6.09961162,4377.3,4376.1,0.005]
[1760061610816,31.57561162,4377.3,4376.1,0.005]
[1760061610976,33.95261162,4377.3,4376.1,0.005]
[1760061611504,24.44461162,4377.3,4376.1,0.005]
[1760061611729,24.44561162,4377.3,4376.1,0.005]
[1760061611899,6.09961162,4377.3,4376.1,0.005]
[1760061612105,24.44561162,4377.3,4376.1,0.005]
[1760061612900,6.09961162,4377.3,4376.1,0.005]
[1760061613083,24.44561162,4377.3,4376.1,0.005]
[1760061614395,6.09961162,4377.3,4376.1,0.005]
[1760061614720,12.5587038,4377.3,4376.1,0.005]
[1760061614921,6.0987038,4377.3,4376.1,0.005]
[1760061615125,24.4437038,4377.3,4376.1,0.005]
[1760061615505,6.0987038,4377.3,4376.1,0.005]
[1760061615708,24.2118038,4377.3,4376.5,0.4567]
[1760061615910,5.8658038,4377.3,4376.5,0.4567]
[1760061616230,24.2118038,4377.3,4376.5,0.4567]
[1760061616437,5.8658038,4377.3,4376.5,0.4567]
[1760061616598,21.8443038,4377.3,4376.5,0.4567]
[1760061616932,21.71161328,4377.3,4376.5,0.4567]
[1760061617147,21.71161328,4377.3,4376.7,0.001]
[1760061619220,9.82461328,4377.3,4376.7,0.001]
[1760061619426,21.71161328,4377.3,4376.7,0.001]
[1760061620100,3.36561328,4377.3,4376.7,0.001]
[1760061620446,22.1349005,4377.3,4376.7,0.001]
[1760061622926,19.7569005,4377.3,4376.7,0.001]
[1760061623151,22.1339005,4377.3,4376.7,0.001]
[1760061624224,3.7889005,4377.3,4376.7,0.001]
[1760061624423,1.05688722,4377.3,4376.9,3.25710572]
[1760061624730,1.05688722,4377.3,4377.2,5.67911684]
[1760061624731,0.42328722,4377.3,4377.2,5.67911684]
[1760061624948,0.42328722,4377.3,4377.2,6.11297119]
[1760061625252,3.15228722,4377.3,4377.2,6.11297119]
[1760061625623,1.51118618,4377.3,4377.2,6.11297119]
[1760061625823,0.002,4378.0,4377.9,2.28420018]
[1760061626022,3.684,4378.0,4377.9,5.5413059]
[1760061626227,3.684,4378.0,4377.9,5.6549059]
[1760061626528,3.684,4378.0,4377.9,6.1116059]
[1760061626949,0.002,4378.0,4377.9,0.5703]
[1760061627151,8.837,4378.0,4377.9,0.1136]
[1760061627460,9.4706,4378.0,4377.9,0.1136]
[1760061627626,9.9022,4378.0,4377.9,0.1136]
[1760061628663,9.4706,4378.0,4377.9,0.1136]
[1760061629026,11.75474801,4378.0,4377.9,0.1136]
[1760061629240,11.75474801,4378.0,4377.3,3.37070572]
[1760061629241,0.6336,4377.9,4377.3,3.37070572]
[1760061629449,0.6336,4377.7,4377.3,3.37070572]
[1760061629628,0.02283225,4377.6,4377.3,3.37070572]
[1760061629826,6.458,4377.5,4377.3,3.37070572]
[1760061630451,0.6336,4377.9,4377.4,0.4698]
[1760061630757,0.6336,4377.7,4377.6,3.25710572]
[1760061630951,0.6336,4377.7,4377.6,3.37070572]
[1760061631262,0.65643225,4377.7,4377.6,3.37070572]
[1760061631628,0.65643225,4377.7,4377.6,0.1136]
[1760061634480,2.91811328,4377.3,4377.2,0.001]
[1760061634770,14.57405125,4377.3,4377.2,0.001]
[1760061634942,11.29411328,4377.3,4377.2,0.001]
[1760061635145,11.72571328,4377.3,4377.2,0.001]
[1760061635532,11.81723504,4377.3,4377.2,0.001]
[1760061635734,12.30575668,4377.3,4377.2,0.001]
[1760061640488,5.84975668,4377.3,4377.2,0.001]
[1760061640688,33.70375668,4377.3,4377.2,0.001]
[1760061640868,5.84975668,4377.3,4377.2,0.001]
[1760061641072,33.70575668,4377.3,4377.2,0.001]
[1760061641390,33.61423492,4377.3,4377.2,0.001]
[1760061641753,5.75823492,4377.3,4377.2,0.001]
[1760061641960,33.61423492,4377.3,4377.2,0.001]
[1760061647500,2.91837426,4376.8,4375.7,0.1136]
[1760061647790,2.91837426,4376.8,4374.0,0.1757]
[1760061647791,11.33120651,4376.8,4374.9,0.1136]
[1760061647948,12.2467959,4376.8,4374.9,0.1136]
[1760061648653,12.2467959,4376.8,4374.7,0.1136]
[1760061651462,12.85589736,4376.8,4374.7,0.1136]
[1760061651790,12.85589292,4376.8,4374.7,0.1136]
[1760061653602,12.85589292,4376.8,4376.6,0.001]
[1760061653777,12.85589292,4376.8,4376.3,1e-08]
[1760061653778,0.6336,4376.4,4376.3,1e-08]
[1760061653976,14.12906156,4376.4,4376.3,1e-08]
[1760061654211,15.04465095,4376.4,4376.3,1e-08]
[1760061654619,15.15766127,4376.4,4376.3,1e-08]
[1760061656282,2.91868751,4376.2,4376.1,1e-08]
[1760061656481,9.9030414,4376.2,4376.1,1e-08]
[1760061656681,12.25010915,4376.2,4376.1,1e-08]
[1760061657114,31.27610915,4376.2,4376.1,1e-08]
[1760061657302,33.65410915,4376.2,4376.1,1e-08]
[1760061658822,5.14350915,4376.2,4376.1,1e-08]
[1760061658982,33.02050915,4376.2,4376.1,1e-08]
[1760061659182,33.65410915,4376.2,4376.1,1e-08]
[1760061659415,33.02050915,4376.2,4376.1,1e-08]
[1760061659722,33.65410915,4376.2,4376.1,1e-08]
[1760061660416,33.65310915,4376.2,4376.1,1e-08]
[1760061663926,34.26220617,4376.2,4376.1,1e-08]
[1760061664435,33.65310915,4376.2,4376.1,1e-08]
[1760061665643,34.46812871,4376.2,4376.1,1e-08]
[1760061665943,33.65310915,4376.2,4376.1,1e-08]
[1760061666438,5.77710915,4376.2,4376.1,1e-08]
[1760061666607,33.65310915,4376.2,4376.1,1e-08]
[1760061667496,21.76110915,4376.2,4376.1,1e-08]
[1760061667711,33.65310915,4376.2,4376.1,1e-08]
[1760061667913,5.77710915,4376.2,4376.1,1e-08]
[1760061668133,33.65310915,4376.2,4376.1,1e-08]
[1760061668962,21.76110915,4376.2,4376.1,1e-08]
[1760061669123,34.4674932,4376.2,4376.1,1e-08]
[1760061671457,6.5914932,4376.2,4376.1,1e-08]
[1760061671618,3.85710915,4376.2,4376.1,1e-08]
[1760061672023,24.14010915,4376.2,4376.1,1e-08]
[1760061672955,21.76110915,4376.2,4376.1,1e-08]
[1760061673255,6.38833331,4376.2,4376.1,0.00100001]
[1760061673462,24.75033331,4376.2,4376.1,0.00100001]
[1760061673943,5.77710915,4376.2,4376.1,0.00100001]
[1760061674145,24.13910915,4376.2,4376.1,0.00100001]
[1760061674660,24.75033331,4376.2,4376.1,0.00100001]
[1760061675047,24.13910915,4376.2,4376.1,0.00100001]
[1760061675249,24.75033331,4376.2,4376.1,0.00100001]
[1760061676354,31.27510915,4376.2,4376.1,0.00100001]
[1760061676660,5.77710915,4376.2,4376.1,0.00100001]
[1760061677156,33.65210915,4376.2,4376.1,0.00100001]
[1760061677562,33.66690915,4376.2,4376.1,0.00100001]
[1760061678328,31.28890915,4376.2,4376.1,0.00100001]
[1760061678658,33.66690915,4376.2,4376.1,0.00100001]
[1760061679352,5.79190915,4376.2,4376.1,0.00100001]
[1760061679731,33.66590915,4376.2,4376.1,0.00100001]
[1760061680564,5.79190915,4376.2,4376.1,0.00100001]
[1760061680861,33.66590915,4376.2,4376.1,0.00100001]
[1760061681836,6.40417889,4376.2,4376.1,0.00100001]
[1760061682064,24.12957889,4376.2,4376.1,0.00100001]
[1760061682363,23.51730915,4376.2,4376.1,0.00100001]
[1760061682864,4.69360915,4376.2,4376.1,0.00100001]
[1760061683064,20.76752164,4376.2,4376.1,0.00100001]
[1760061683272,18.38952164,4376.2,4376.1,0.00100001]
[1760061683475,20.76752164,4376.2,4376.1,0.00100001]
[1760061684778,20.76652164,4376.2,4376.1,0.00100001]
[1760061684978,5.15830915,4376.2,4376.1,0.00100001]
[1760061685141,23.51530915,4376.2,4376.1,0.00100001]
[1760061693792,24.14890915,4376.2,4376.1,0.00100001]
[1760061693997,24.15090915,4376.2,4376.1,0.00100001]
[1760061695385,24.76317889,4376.2,4376.1,0.00100001]
[1760061695589,27.41266162,4376.2,4376.1,0.00100001]
[1760061696383,28.22704567,4376.2,4376.1,0.00100001]
[1760061696583,28.22840848,4376.2,4376.1,0.00100001]
[1760061697698,6.60965601,4376.2,4376.1,0.00100001]
[1760061697903,37.74140848,4376.2,4376.1,0.00100001]
[1760061698471,34.47965601,4376.2,4376.1,0.00100001]
[1760061698671,33.66390915,4376.2,4376.1,0.00100001]
[1760061698870,36.92566162,4376.2,4376.1,0.00100001]
[1760061699086,37.74140848,4376.2,4376.1,0.00100001]
[1760061699401,9.87140848,4376.2,4376.1,0.00100001]
[1760061699568,37.74140848,4376.2,4376.1,0.00100001]
[1760061702111,37.83296208,4376.2,4376.1,0.00100001]
[1760061705419,4.83873973,4376.1,4375.8,0.001]
[1760061705596,4.83873973,4376.1,4375.1,0.005]
[1760061705597,7.46736227,4375.2,4375.1,0.005]
[1760061705806,17.8671849,4375.2,4375.1,1e-08]
[1760061705985,18.3238849,4375.2,4375.1,1e-08]
[1760061706526,18.78395944,4375.2,4375.1,1e-08]
[1760061707228,18.87554197,4375.2,4375.1,1e-08]
[1760061708015,37.90354197,4375.2,4375.1,1e-08]
[1760061708586,38.71885254,4375.2,4375.1,1e-08]
[1760061708781,38.30415155,4375.2,4375.1,1e-08]
[1760061709179,37.48884098,4375.2,4375.1,1e-08]
[1760061710191,2.28613232,4374.2,4374.1,0.005]
[1760061710417,2.28613232,4374.2,4373.1,0.005]
[1760061710418,2.28665508,4373.2,4373.1,0.005]
[1760061710615,22.33848733,4373.2,4373.1,0.005]
[1760061710822,4.66335508,4373.2,4373.1,0.005]
[1760061711025,4.20665508,4373.2,4373.1,0.005]
[1760061711202,1.94283225,4373.2,4373.1,0.005]
[1760061711726,22.25548733,4373.2,4373.1,0.005]
[1760061711892,19.946,4373.2,4373.1,0.005]
[1760061712233,0.4567,4373.6,4373.1,0.005]
[1760061712413,0.02283225,4373.5,4373.2,3.26175247]
[1760061712616,13.084,4373.4,4373.3,0.4368]
[1760061712925,0.68697124,4373.8,4373.3,0.4368]
[1760061713348,2.378,4373.6,4373.1,0.005]
[1760061713525,4.92983225,4373.5,4373.1,0.005]
[1760061713708,4.907,4373.5,4373.1,0.005]
[1760061714035,0.02283225,4373.4,4373.1,0.005]
[1760061714237,0.02283225,4373.7,4373.1,0.005]
[1760061714438,15.369,4373.6,4373.3,0.001]
[1760061714739,0.02283225,4373.5,4373.3,0.001]
[1760061714936,15.999,4373.4,4373.3,0.001]
[1760061715142,18.378,4373.4,4373.3,0.001]
[1760061716708,18.378,4373.4,4373.3,0.4378]
[1760061716912,18.378,4373.4,4373.3,0.001]
[1760061718630,18.8165,4373.4,4373.3,0.001]
[1760061718843,18.378,4373.4,4373.3,0.001]
[1760061719145,18.377,4373.4,4373.3,0.001]
[1760061720942,18.378,4373.4,4373.3,0.001]
[1760061723392,18.378,4373.4,4372.7,0.4103]
[1760061723673,0.02283225,4373.3,4372.8,2.28684811]
[1760061723839,6.481,4373.2,4372.8,2.28684811]
[1760061724560,6.481,4373.2,4372.4,2.2870666]
[1760061724756,6.481,4373.2,4372.8,2.28683471]
[1760061724957,6.481,4373.2,4372.7,2.28686936]
[1760061725159,6.481,4373.2,4372.8,2.28685274]
[1760061725339,6.481,4373.2,4372.9,0.4737]
[1760061725539,6.481,4373.2,4372.9,2.76050716]
[1760061725871,6.481,4373.2,4372.1,0.005]
[1760061725872,2.28691537,4372.8,4372.1,0.005]
[1760061726072,6.50283225,4372.7,4372.2,0.4737]
[1760061726273,6.48,4372.6,4372.3,0.4737]
[1760061726571,0.02283225,4372.5,4372.3,0.4737]
[1760061726761,2.379,4372.4,4372.3,0.4737]
[1760061726945,15.997,4372.4,4372.3,0.4737]
[1760061727147,0.4385,4372.9,4372.1,0.005]
[1760061727352,20.6856965,4372.8,4372.1,0.005]
[1760061727572,18.376,4372.8,4372.1,0.005]
[1760061728141,20.66286748,4372.8,4372.1,0.005]
[1760061728670,0.02283225,4372.7,4372.1,0.005]
[1760061728872,6.481,4372.6,4372.1,0.005]
[1760061729077,0.46133225,4372.5,4372.1,0.005]
[1760061729295,6.481,4372.4,4372.1,0.005]
[1760061729438,0.02283225,4372.3,4372.1,0.005]
[1760061729644,6.481,4372.2,4372.1,0.005]
[1760061732142,6.9195,4372.2,4372.1,0.005]
[1760061732946,9.20667807,4372.2,4372.1,0.005]
[1760061733678,11.12667807,4372.2,4372.1,0.005]
[1760061734056,11.61446033,4372.2,4372.1,0.005]
[1760061734259,11.61446033,4372.2,4372.1,0.006]
[1760061736878,5.13346033,4372.2,4372.1,0.006]
[1760061737179,21.24028226,4372.2,4372.1,0.006]
[1760061737388,2.40778226,4372.2,4372.1,0.006]
[1760061737549,32.58351032,4372.2,4372.1,0.006]
[1760061737750,5.82071327,4372.2,4372.1,0.006]
[1760061738075,33.04846033,4372.2,4372.1,0.006]
[1760061738377,33.140093,4372.2,4372.1,0.006]
[1760061738944,1.01791493,4372.2,4372.1,0.006]
[1760061739187,13.903,4372.2,4372.1,0.006]
[1760061739393,16.2615,4372.2,4372.1,0.006]
[1760061739893,19.52834567,4372.2,4372.1,0.006]
[1760061740060,22.30269574,4372.2,4372.1,0.006]
[1760061740764,19.03585007,4372.2,4372.1,0.006]
[1760061743303,33.05085007,4372.2,4372.1,0.006]
[1760061744077,5.13285007,4372.2,4372.1,0.006]
[1760061744292,33.05085007,4372.2,4372.1,0.006]
[1760061744808,13.821,4372.2,4372.1,0.006]
[1760061745005,20.316,4372.2,4372.1,0.006]
[1760061745175,23.04167807,4372.2,4372.1,0.006]
[1760061746581,23.52864316,4372.2,4372.1,0.006]
[1760061746788,23.04167807,4372.2,4372.1,0.006]
[1760061747024,23.52864017,4372.2,4372.1,0.006]
[1760061748712,23.04167807,4372.2,4372.1,0.006]
[1760061749035,20.7545,4372.2,4372.1,0.006]
[1760061749406,23.04167807,4372.2,4372.1,0.006]
[1760061750414,26.30852374,4372.2,4372.1,0.006]
[1760061750615,23.52898048,4372.2,4372.1,0.006]
[1760061750976,23.04167807,4372.2,4372.1,0.006]
[1760061751685,23.52913318,4372.2,4372.1,0.006]
[1760061752096,23.04167807,4372.2,4372.1,0.006]
[1760061752498,26.79612989,4372.2,4372.1,0.006]
[1760061753616,5.13328422,4372.2,4372.1,0.006]
[1760061753801,23.53628422,4372.2,4372.1,0.006]
[1760061758499,27.99021656,4372.2,4372.1,0.006]
[1760061758733,27.38103275,4372.2,4372.1,0.006]
[1760061760342,28.19634332,4372.2,4372.1,0.006]
[1760061760805,28.8836309,4372.2,4372.1,0.006]
[1760061761704,28.19634332,4372.2,4372.1,0.006]
[1760061761908,24.35159479,4372.2,4372.1,0.006]
[1760061762440,33.05728422,4372.2,4372.1,0.006]
[1760061762912,11.63328422,4372.2,4372.1,0.006]
[1760061763116,5.13328422,4372.2,4372.1,0.006]
[1760061763323,23.53528422,4372.2,4372.1,0.006]
[1760061763925,5.13328422,4372.2,4372.1,0.006]
[1760061764141,23.53528422,4372.2,4372.1,0.006]
[1760061764337,24.14685243,4372.2,4372.1,0.006]
[1760061764943,24.146856,4372.2,4372.1,0.006]
[1760061765237,23.53528422,4372.2,4372.1,0.006]
[1760061765627,24.14685221,4372.2,4372.1,0.006]
[1760061765806,23.53528422,4372.2,4372.1,0.006]
[1760061766145,27.38003275,4372.2,4372.1,0.006]
[1760061766316,24.35066451,4372.2,4372.1,0.006]
[1760061766640,30.69328422,4372.2,4372.1,0.006]
[1760061766842,33.07328422,4372.2,4372.1,0.006]
[1760061779948,33.07524335,4372.2,4372.1,0.006]
[1760061785572,32.58567807,4372.2,4372.1,0.006]
[1760061785890,33.07552302,4372.2,4372.1,0.006]
[1760061787785,0.48984495,4372.2,4372.1,0.006]
[1760061787986,14.19017807,4372.2,4372.1,0.006]
[1760061788188,0.002,4372.7,4372.1,0.006]
[1760061788430,0.002,4372.7,4372.2,3.84474853]
[1760061788431,7.339,4372.6,4372.2,3.84474853]
[1760061788706,0.02283225,4372.5,4372.3,0.4569]
[1760061788892,2.38,4372.6,4372.4,0.4569]
[1760061789099,6.505,4372.5,4372.3,0.02287125]
[1760061789674,0.002,4372.7,4372.4,2.74397346]
[1760061789869,0.002,4372.7,4372.6,3.84474853]
[1760061790095,4.36,4372.7,4372.6,3.84474853]
[1760061790305,0.002,4373.2,4373.1,2.28670737]
[1760061790508,0.564,4373.2,4373.1,6.1314559]
[1760061790686,0.564,4373.2,4373.1,6.5883559]
[1760061791107,0.564,4373.2,4373.1,7.2219559]
[1760061791473,2.932,4373.2,4373.1,7.2219559]
[1760061791673,5.312,4373.2,4373.1,7.2219559]
[1760061793220,5.312,4373.2,4372.5,0.4569]
[1760061794424,5.312,4373.2,4372.5,2.74391762]
[1760061794640,5.312,4373.2,4372.6,0.4569]
[1760061795823,0.02283225,4373.1,4372.3,0.4569]
[1760061796026,2.30954074,4373.1,4372.3,0.4569]
[1760061796630,2.30954074,4373.1,4372.1,0.006]
[1760061796631,3.84474853,4372.8,4372.1,0.006]
[1760061796813,2.28717807,4372.2,4372.1,0.006]
[1760061797011,10.73001032,4372.2,4372.1,0.006]
[1760061797215,10.70717807,4372.2,4372.1,0.006]
[1760061797527,11.16907807,4372.2,4372.1,0.006]
[1760061802535,22.60817807,4372.2,4372.1,0.006]
[1760061803101,23.07007807,4372.2,4372.1,0.006]
[1760061806004,20.321,4372.2,4372.1,0.006]
[1760061806221,23.07007807,4372.2,4372.1,0.006]
[1760061806608,22.60817807,4372.2,4372.1,0.006]
[1760061806907,22.60517807,4372.2,4372.1,0.006]
[1760061807127,18.398,4372.2,4372.1,0.006]
[1760061807348,18.398,4372.2,4372.1,0.4548]
[1760061807751,18.398,4372.2,4372.1,0.006]
[1760061809160,18.398,4372.2,4372.1,0.5751]
[1760061810828,18.398,4372.2,4372.1,0.006]
[1760061816294,21.12327807,4372.2,4372.1,0.006]
[1760061819209,23.04327807,4372.2,4372.1,0.006]
[1760061820686,23.53073063,4372.2,4372.1,0.006]
[1760061821199,23.53073063,4372.2,4371.6,0.001]
[1760061821200,2.28735713,4371.9,4371.6,0.001]
[1760061821378,4.84711658,4371.7,4371.6,0.001]
[1760061821559,5.33456914,4371.7,4371.6,0.001]
[1760061821760,5.77266914,4371.7,4371.6,0.001]
[1760061822614,6.38519209,4371.7,4371.6,0.001]
[1760061823624,6.40626914,4371.7,4371.6,0.001]
[1760061824509,7.01571206,4371.7,4371.6,0.001]
[1760061825705,6.8607655,4371.7,4371.6,0.001]
[1760061827196,7.47023109,4371.7,4371.6,0.001]
[1760061827611,6.40626914,4371.7,4371.6,0.001]
[1760061827993,7.01573473,4371.7,4371.6,0.001]
[1760061828603,6.40626914,4371.7,4371.6,0.001]
[1760061830450,6.85394989,4371.7,4371.6,0.001]
[1760061831050,33.71266914,4371.7,4371.6,0.001]
[1760061831215,5.77266914,4371.7,4371.6,0.001]
[1760061831550,33.71266914,4371.7,4371.6,0.001]
[1760061833220,33.29799222,4371.7,4371.6,0.001]
[1760061834443,32.81053966,4371.7,4371.6,0.001]
[1760061840181,32.14743966,4371.7,4371.6,0.001]
[1760061840347,32.62143966,4371.7,4371.6,0.001]
[1760061840547,2.28730189,4372.0,4371.6,0.001]
[1760061840775,8.91283225,4371.9,4371.6,0.001]
[1760061841117,8.89,4371.9,4371.6,0.001]
[1760061841877,11.17734796,4371.9,4371.6,0.001]
[1760061842379,8.89,4371.9,4371.6,0.001]
[1760061844082,0.02283225,4371.8,4371.6,0.439]
[1760061844290,6.51,4371.7,4371.6,0.001]
[1760061844471,0.474,4372.5,4371.6,0.001]
[1760061844783,1.92,4372.3,4371.6,0.439]
[1760061845000,4.38883225,4372.2,4371.6,0.439]
[1760061845197,4.38883225,4372.2,4371.6,2.72647695]
[1760061845497,0.41430982,4372.6,4371.7,0.46087439]
[1760061845697,14.71202935,4372.5,4371.9,3.26487362]
[1760061846005,12.425,4372.5,4371.9,3.70287362]
[1760061847323,2.30991514,4372.4,4371.6,3.26587362]
[1760061847466,6.508,4372.3,4371.6,3.26587362]
[1760061847665,0.02283225,4372.2,4371.6,3.26587362]
[1760061847991,6.508,4372.1,4371.6,3.26587362]
[1760061848184,6.508,4372.1,4371.6,5.55336009]
[1760061848390,6.508,4372.1,4371.7,0.438]
[1760061848696,6.508,4372.1,4371.8,0.438]
[1760061850603,6.508,4372.1,4371.9,0.438]
[1760061851097,6.508,4372.1,4372.0,0.438]
[1760061851506,6.508,4372.1,4372.0,2.7252827]
[1760061851672,6.51,4372.1,4372.0,2.7252827]
[1760061852313,8.887,4372.1,4372.0,2.74815552]
[1760061855640,8.887,4372.1,4372.0,2.7252827]
[1760061858016,8.887,4372.1,4372.0,2.74815552]
[1760061858708,8.887,4372.1,4372.0,2.7252827]
[1760061860426,8.887,4372.1,4371.6,0.001]
[1760061860625,0.02283225,4372.0,4371.6,0.001]
[1760061860811,6.5,4371.9,4371.6,0.001]
[1760061862928,6.5,4371.9,4371.6,0.439]
[1760061864824,6.5,4371.9,4371.6,0.001]
[1760061866722,0.49683225,4371.8,4371.6,0.001]
[1760061867055,2.28743966,4371.7,4371.6,0.001]
[1760061867376,2.72253966,4371.7,4371.6,0.001]
[1760061868452,4.64253966,4371.7,4371.6,0.001]
[1760061869053,23.04953966,4371.7,4371.6,0.001]
[1760061872832,22.61343966,4371.7,4371.6,0.001]
[1760061873135,4.64253966,4371.7,4371.6,0.001]
[1760061873338,23.04853966,4371.7,4371.6,0.001]
[1760061876972,25.87831328,4371.7,4371.6,0.001]
[1760061877176,26.31341328,4371.7,4371.6,0.001]
[1760061877781,23.04853966,4371.7,4371.6,0.001]
[1760061879994,28.6253929,4371.7,4371.6,0.001]
[1760061880144,28.0160098,4371.7,4371.6,0.001]
[1760061880477,2.28818484,4370.3,4369.3,0.11947951]
[1760061880677,18.42583225,4370.2,4369.3,0.11947951]
[1760061880884,18.403,4370.2,4369.3,0.11947951]
[1760061881045,0.02283225,4370.1,4369.3,0.11947951]
[1760061881251,6.501,4370.0,4369.3,0.11947951]
[1760061881681,0.02283225,4369.9,4369.3,0.11947951]
[1760061881882,6.501,4369.8,4369.3,2.40816166]
[1760061882378,6.501,4369.8,4369.3,2.53086166]
[1760061883178,2.28860276,4369.5,4369.3,0.11947951]
[1760061883392,11.19149104,4369.4,4368.8,0.00625]
[1760061883592,8.05489401,4369.2,4368.8,0.00625]
[1760061884092,8.48999401,4369.2,4368.8,0.00625]
[1760061884287,9.12359401,4369.2,4368.8,0.00625]
[1760061887302,37.05659401,4369.2,4368.8,0.00625]
[1760061887872,33.21044851,4369.2,4368.8,0.00625]
[1760061888078,37.05659401,4369.2,4368.8,0.00625]
[1760061888913,9.12359401,4369.2,4368.8,0.00625]
[1760061889074,37.05859401,4369.2,4368.8,0.00625]
[1760061889270,37.63526418,4369.2,4368.8,0.00625]
[1760061889511,37.63502133,4369.2,4369.1,1e-08]
[1760061890209,33.3041648,4369.2,4369.1,1e-08]
[1760061890411,9.2153103,4369.2,4369.1,1e-08]
[1760061890584,25.2443103,4369.2,4369.1,1e-08]
[1760061890908,37.1513103,4369.2,4369.1,1e-08]
[1760061892268,1.0687,4369.2,4369.1,1e-08]
[1760061892469,23.71028076,4369.2,4369.1,1e-08]
[1760061892705,23.68744851,4369.2,4369.1,1e-08]
[1760061893011,23.68744851,4369.2,4369.1,0.00100001]
[1760061894609,24.17162164,4369.2,4369.1,0.00100001]
[1760061894820,23.68744851,4369.2,4369.1,0.00100001]
[1760061895128,24.17163389,4369.2,4369.1,0.00100001]
[1760061895723,23.68744851,4369.2,4369.1,0.00100001]
[1760061896802,23.69344851,4369.2,4369.1,0.00100001]
[1760061898733,24.17780177,4369.2,4369.1,0.00100001]
[1760061898902,5.76180177,4369.2,4369.1,0.00100001]
[1760061899098,23.69444851,4369.2,4369.1,0.00100001]
[1760061900342,23.06084851,4369.2,4369.1,0.00100001]
[1760061903142,23.5454555,4369.2,4369.1,0.00100001]
[1760061904945,23.06084851,4369.2,4369.1,0.00100001]
[1760061905301,23.54554948,4369.2,4369.1,0.00100001]
[1760061905605,5.12854948,4369.2,4369.1,0.00100001]
[1760061905806,21.25380097,4369.2,4369.1,0.00100001]
[1760061906038,20.334,4369.2,4369.1,0.00100001]
[1760061907834,18.414,4369.2,4369.1,0.00100001]
[1760061910142,18.414,4369.2,4369.1,2.3126889]
[1760061910349,18.414,4369.2,4369.1,2.4125009]
[1760061910640,9.528,4370.0,4369.4,2.28862974]
[1760061910841,8.884,4369.9,4369.5,0.02288591]
[1760061911344,8.884,4369.9,4369.6,0.1227]
[1760061911745,8.884,4369.9,4369.7,0.1227]
[1760061912832,8.884,4369.9,4369.8,0.1227]
[1760061913036,8.884,4369.9,4369.8,0.14558434]
[1760061913248,8.884,4369.9,4369.8,0.1227]
[1760061913744,8.884,4369.9,4369.8,0.14558434]
[1760061914514,8.884,4369.9,4369.8,0.1227]
[1760061914709,8.884,4369.9,4369.6,0.02288538]
[1760061914914,8.884,4369.9,4369.7,0.1227]
[1760061915250,0.02283225,4369.8,4369.1,0.00100001]
[1760061915427,6.5,4369.7,4369.1,0.00100001]
[1760061915621,0.02283225,4369.6,4369.1,0.00100001]
[1760061915826,6.5,4369.5,4369.1,0.00100001]
[1760061916219,8.7885942,4369.5,4369.1,0.00100001]
[1760061916757,6.5,4369.5,4369.1,0.00100001]
[1760061916964,0.48123225,4369.4,4369.1,0.00100001]
[1760061917259,6.499,4369.3,4369.1,0.00100001]
[1760061918556,6.499,4369.3,4369.1,0.12370001]
[1760061919466,6.499,4369.3,4369.1,0.00100001]
[1760061923975,6.499,4369.3,4369.1,0.12370001]
[1760061925070,8.876,4369.2,4369.1,0.00100001]
[1760061925280,8.876,4369.2,4369.1,0.12370001]
[1760061928174,8.876,4369.2,4369.1,0.00100001]
[1760061928373,0.002,4370.1,4369.1,2.4125009]
[1760061928585,1.92,4369.9,4369.2,2.43432519]
[1760061929697,0.4369,4369.8,4369.2,0.02288748]
[1760061929848,8.78148662,4369.7,4369.1,0.00100001]
[1760061930045,0.02283225,4369.6,4369.1,0.00100001]
[1760061930567,0.02283225,4369.6,4369.1,0.12370001]
[1760061931077,6.493,4369.7,4369.2,0.02288748]
[1760061931488,6.493,4369.7,4369.2,0.14558748]
[1760061931784,6.493,4369.7,4369.2,0.02288748]
[1760061931967,6.493,4369.7,4369.3,0.1227]
[1760061932173,6.493,4369.7,4369.3,0.14558696]
[1760061932552,6.495,4369.7,4369.3,0.1227]
[1760061933284,0.45973225,4369.6,4369.1,0.00100001]
[1760061933655,0.4369,4369.5,4369.1,0.00100001]
[1760061933892,6.498,4369.4,4369.1,0.00100001]
[1760061935991,8.879,4369.3,4369.1,0.00100001]
[1760061936289,6.498,4369.2,4369.1,0.00100001]
[1760061940086,9.22364851,4369.2,4369.1,0.00100001]
[1760061940389,6.9349,4369.2,4369.1,0.00100001]
[1760061941302,9.22364851,4369.2,4369.1,0.00100001]
[1760061941511,15.53829067,4369.2,4369.1,0.00100001]
[1760061941666,11.80727134,4368.2,4368.1,1e-08]
[1760061941861,11.80727134,4368.2,4367.1,0.005]
[1760061941862,3.27275424,4367.5,4367.1,0.005]
[1760061942096,7.4825509,4367.2,4367.1,0.005]
[1760061942286,14.2162509,4367.2,4367.1,0.005]
[1760061942483,14.6531509,4367.2,4367.1,0.005]
[1760061942686,11.38039666,4367.2,4367.1,0.005]
[1760061942883,4.20985061,4367.1,4366.1,2.29037088]
[1760061943082,6.51983225,4367.0,4366.1,2.29037088]